[Event "Titled Tuesday Blitz November 29 Late 2022"]
[White "Martinez Ramirez, Lennis"]
[Black "Novikova, Galina"]
[WhiteFideId "3509079"]
[BlackFideId "4157095"]
[WhiteElo "2439"]
[BlackElo "1973"]
[Result "1-0"]
[Round "03"]
[TimeControl "180+1"]
[Date "2022.11.30"]
[WhiteClock "0:01:02"]
[BlackClock "0:00:03"]

1. d4 {[%clk 0:03:00]}  e6 {[%clk 0:03:00]} 2. e4 {[%clk 0:03:00]}  d5 {[%clk 0:03:00]} 3. Nc3 {[%clk 0:03:00]}  Bb4 {[%clk 0:03:00]} 4. e5 {[%clk 0:02:59]}  Ne7 {[%clk 0:02:59]} 5. a3 {[%clk 0:02:59]}  Bxc3+ {[%clk 0:02:59]} 6. bxc3 {[%clk 0:02:58]}  c5 {[%clk 0:03:00]} 7. Nf3 {[%clk 0:02:56]}  b6 {[%clk 0:02:56]} 8. a4 {[%clk 0:02:47]}  Bb7 {[%clk 0:02:54]} 9. Bb5+ {[%clk 0:02:46]}  Nd7 {[%clk 0:02:51]} 10. Ba3 {[%clk 0:02:46]}  Rc8 {[%clk 0:02:49]} 11. a5 {[%clk 0:02:43]}  O-O {[%clk 0:02:48]} 12. axb6 {[%clk 0:02:37]}  axb6 {[%clk 0:02:47]} 13. O-O {[%clk 0:02:28]}  Nf5 {[%clk 0:02:38]} 14. Bd3 {[%clk 0:02:26]}  Nh4 {[%clk 0:02:30]} 15. Rb1 {[%clk 0:02:23]}  Bc6 {[%clk 0:02:18]} 16. Bc1 {[%clk 0:02:22]}  Ng6 {[%clk 0:02:06]} 17. Ng5 {[%clk 0:02:10]}  Qe7 {[%clk 0:01:09]} 18. Qh5 {[%clk 0:02:07]}  h6 {[%clk 0:01:09]} 19. Nxf7 {[%clk 0:02:05]}  Qxf7 {[%clk 0:01:03]} 20. Bxg6 {[%clk 0:02:05]}  Qe7 {[%clk 0:01:01]} 21. Be3 {[%clk 0:02:02]}  b5 {[%clk 0:00:41]} 22. g4 {[%clk 0:02:01]}  cxd4 {[%clk 0:00:34]} 23. cxd4 {[%clk 0:02:01]}  Nb6 {[%clk 0:00:27]} 24. g5 {[%clk 0:02:00]}  Nc4 {[%clk 0:00:28]} 25. gxh6 {[%clk 0:02:00]}  Nxe3 {[%clk 0:00:28]} 26. fxe3 {[%clk 0:02:01]}  gxh6 {[%clk 0:00:26]} 27. Qxh6 {[%clk 0:01:57]}  Qg7 {[%clk 0:00:26]} 28. Qxg7+ {[%clk 0:01:55]}  Kxg7 {[%clk 0:00:27]} 29. Bd3 {[%clk 0:01:54]}  Rxf1+ {[%clk 0:00:24]} 30. Bxf1 {[%clk 0:01:55]}  Rb8 {[%clk 0:00:24]} 31. c3 {[%clk 0:01:54]}  Kg6 {[%clk 0:00:24]} 32. Bd3+ {[%clk 0:01:53]}  Kg5 {[%clk 0:00:24]} 33. Kg2 {[%clk 0:01:52]}  Kh4 {[%clk 0:00:20]} 34. Rf1 {[%clk 0:01:44]}  b4 {[%clk 0:00:20]} 35. Rf4+ {[%clk 0:01:41]}  Kg5 {[%clk 0:00:18]} 36. h4+ {[%clk 0:01:39]}  Kh5 {[%clk 0:00:14]} 37. Be2+ {[%clk 0:01:38]}  Kh6 {[%clk 0:00:14]} 38. Rf6+ {[%clk 0:01:38]}  Kg7 {[%clk 0:00:14]} 39. Rxe6 {[%clk 0:01:30]}  Bb5 {[%clk 0:00:11]} 40. Bxb5 {[%clk 0:01:29]}  Rxb5 {[%clk 0:00:12]} 41. cxb4 {[%clk 0:01:29]}  Rxb4 {[%clk 0:00:13]} 42. h5 {[%clk 0:01:26]}  Rb3 {[%clk 0:00:10]} 43. Kf3 {[%clk 0:01:26]}  Rb2 {[%clk 0:00:10]} 44. Rd6 {[%clk 0:01:25]}  Rh2 {[%clk 0:00:10]} 45. h6+ {[%clk 0:01:21]}  Kf7 {[%clk 0:00:11]} 46. Kg3 {[%clk 0:01:15]}  Rh1 {[%clk 0:00:10]} 47. Kg2 {[%clk 0:01:13]}  Rh5 {[%clk 0:00:09]} 48. h7 {[%clk 0:01:09]}  Ke7 {[%clk 0:00:08]} 49. Ra6 {[%clk 0:01:04]}  Rh6 {[%clk 0:00:03]} 50. Rxh6 {[%clk 0:01:02]} 1-0


[Site "https://www.chess.com"]

[Event "Titled Tuesday Blitz November 29 Late 2022"]
[White "Martinez Reyes, Pedro Ramon"]
[Black "Steinberg, Nitzan"]
[WhiteFideId "3901807"]
[BlackFideId "2801795"]
[WhiteElo "2354"]
[BlackElo "2491"]
[Result "1/2-1/2"]
[Round "03"]
[TimeControl "180+1"]
[Date "2022.11.30"]
[WhiteClock "0:00:06"]
[BlackClock "0:00:21"]

1. f4 {[%clk 0:03:00]}  d5 {[%clk 0:02:59]} 2. Nf3 {[%clk 0:02:53]}  g6 {[%clk 0:03:00]} 3. e3 {[%clk 0:02:52]}  Bg7 {[%clk 0:03:00]} 4. Be2 {[%clk 0:02:51]}  Nh6 {[%clk 0:03:01]} 5. O-O {[%clk 0:02:51]}  O-O {[%clk 0:03:02]} 6. Qe1 {[%clk 0:02:44]}  c5 {[%clk 0:03:02]} 7. d4 {[%clk 0:02:39]}  Nc6 {[%clk 0:03:01]} 8. c3 {[%clk 0:02:40]}  b6 {[%clk 0:02:56]} 9. Nbd2 {[%clk 0:02:19]}  Ng4 {[%clk 0:02:55]} 10. Bb5 {[%clk 0:02:15]}  Na5 {[%clk 0:02:51]} 11. Ne5 {[%clk 0:02:11]}  Nf6 {[%clk 0:02:48]} 12. Qh4 {[%clk 0:01:59]}  Bf5 {[%clk 0:02:46]} 13. g4 {[%clk 0:01:56]}  Bc2 {[%clk 0:02:40]} 14. g5 {[%clk 0:01:51]}  Ne4 {[%clk 0:02:37]} 15. Nxe4 {[%clk 0:01:43]}  Bxe4 {[%clk 0:02:36]} 16. Bd2 {[%clk 0:01:36]}  a6 {[%clk 0:02:32]} 17. Be2 {[%clk 0:01:35]}  Nc4 {[%clk 0:02:27]} 18. Nxc4 {[%clk 0:01:30]}  dxc4 {[%clk 0:02:28]} 19. Bxc4 {[%clk 0:01:25]}  cxd4 {[%clk 0:02:28]} 20. exd4 {[%clk 0:01:21]}  Bxd4+ {[%clk 0:02:28]} 21. cxd4 {[%clk 0:01:12]}  Qxd4+ {[%clk 0:02:28]} 22. Qf2 {[%clk 0:01:12]}  Qxc4 {[%clk 0:02:28]} 23. Bc3 {[%clk 0:01:05]}  Rfd8 {[%clk 0:02:20]} 24. Rfd1 {[%clk 0:01:03]}  Rd3 {[%clk 0:01:53]} 25. Rxd3 {[%clk 0:00:52]}  Qxd3 {[%clk 0:01:50]} 26. Qd4 {[%clk 0:00:53]}  Qxd4+ {[%clk 0:01:38]} 27. Bxd4 {[%clk 0:00:54]}  b5 {[%clk 0:01:24]} 28. Re1 {[%clk 0:00:53]}  Bd5 {[%clk 0:01:24]} 29. a3 {[%clk 0:00:50]}  e6 {[%clk 0:01:19]} 30. Rc1 {[%clk 0:00:50]}  Bc4 {[%clk 0:01:19]} 31. Bf6 {[%clk 0:00:49]}  Kf8 {[%clk 0:01:16]} 32. Rd1 {[%clk 0:00:48]}  Bd5 {[%clk 0:01:16]} 33. Rc1 {[%clk 0:00:48]}  Bc4 {[%clk 0:01:16]} 34. Rd1 {[%clk 0:00:47]}  Ke8 {[%clk 0:01:09]} 35. Rd6 {[%clk 0:00:46]}  Bd5 {[%clk 0:01:09]} 36. Kf2 {[%clk 0:00:44]}  Bb7 {[%clk 0:01:06]} 37. Ke3 {[%clk 0:00:42]}  Rc8 {[%clk 0:01:06]} 38. h4 {[%clk 0:00:36]}  Bc6 {[%clk 0:01:05]} 39. Kd4 {[%clk 0:00:36]}  a5 {[%clk 0:01:04]} 40. Kc5 {[%clk 0:00:35]}  Bd7+ {[%clk 0:01:03]} 41. Kb6 {[%clk 0:00:34]}  a4 {[%clk 0:01:03]} 42. Kb7 {[%clk 0:00:31]}  Rc4 {[%clk 0:01:01]} 43. Be5 {[%clk 0:00:12]}  Ke7 {[%clk 0:01:01]} 44. Rb6 {[%clk 0:00:11]}  Be8 {[%clk 0:00:51]} 45. Ka6 {[%clk 0:00:11]}  Kd8 {[%clk 0:00:48]} 46. Rb8+ {[%clk 0:00:11]}  Ke7 {[%clk 0:00:44]} 47. Rb7+ {[%clk 0:00:10]}  Bd7 {[%clk 0:00:41]} 48. Rb6 {[%clk 0:00:07]}  Rc8 {[%clk 0:00:38]} 49. Bd6+ {[%clk 0:00:07]}  Kd8 {[%clk 0:00:38]} 50. Rb8 {[%clk 0:00:06]}  Bc6 {[%clk 0:00:31]} 51. Kb6 {[%clk 0:00:06]}  Rxb8+ {[%clk 0:00:31]} 52. Bxb8 {[%clk 0:00:07]}  Kd7 {[%clk 0:00:32]} 53. Be5 {[%clk 0:00:07]}  Be4 {[%clk 0:00:28]} 54. Bb8 {[%clk 0:00:07]}  Bc2 {[%clk 0:00:29]} 55. Kxb5 {[%clk 0:00:07]}  Kc8 {[%clk 0:00:28]} 56. Be5 {[%clk 0:00:08]}  Kd7 {[%clk 0:00:28]} 57. Kc5 {[%clk 0:00:07]}  Bb3 {[%clk 0:00:29]} 58. Bf6 {[%clk 0:00:08]}  Bd5 {[%clk 0:00:27]} 59. Be5 {[%clk 0:00:08]}  Bb3 {[%clk 0:00:27]} 60. Bf6 {[%clk 0:00:09]}  e5 {[%clk 0:00:23]} 61. Bxe5 {[%clk 0:00:05]}  Ke6 {[%clk 0:00:24]} 62. Kd4 {[%clk 0:00:04]}  Kf5 {[%clk 0:00:24]} 63. Ke3 {[%clk 0:00:05]}  Kg4 {[%clk 0:00:25]} 64. Bg7 {[%clk 0:00:05]}  Kxh4 {[%clk 0:00:25]} 65. Bf8 {[%clk 0:00:06]}  Kg4 {[%clk 0:00:25]} 66. Bg7 {[%clk 0:00:06]}  Kf5 {[%clk 0:00:25]} 67. Bh8 {[%clk 0:00:06]}  Ke6 {[%clk 0:00:23]} 68. Bc3 {[%clk 0:00:07]}  Kf5 {[%clk 0:00:23]} 69. Bh8 {[%clk 0:00:06]}  Kg4 {[%clk 0:00:23]} 70. Bg7 {[%clk 0:00:06]}  Kh5 {[%clk 0:00:23]} 71. Ke4 {[%clk 0:00:07]}  Kg4 {[%clk 0:00:24]} 72. Ke5 {[%clk 0:00:06]}  Be6 {[%clk 0:00:24]} 73. Bf6 {[%clk 0:00:06]}  Kf3 {[%clk 0:00:24]} 74. Bg7 {[%clk 0:00:07]}  Ke2 {[%clk 0:00:24]} 75. Bh8 {[%clk 0:00:06]}  Kd3 {[%clk 0:00:24]} 76. Kd6 {[%clk 0:00:06]}  Ke4 {[%clk 0:00:25]} 77. Be5 {[%clk 0:00:06]}  Kf5 {[%clk 0:00:25]} 78. Ke7 {[%clk 0:00:06]}  Kg4 {[%clk 0:00:24]} 79. Kf6 {[%clk 0:00:06]}  Kh5 {[%clk 0:00:24]} 80. Kg7 {[%clk 0:00:05]}  Kg4 {[%clk 0:00:21]} 81. Kxh7 {[%clk 0:00:05]}  Kf5 {[%clk 0:00:21]} 82. Kg7 {[%clk 0:00:05]}  Kg4 {[%clk 0:00:22]} 83. Kf6 {[%clk 0:00:06]}  Kf3 {[%clk 0:00:20]} 84. f5 {[%clk 0:00:05]}  Bxf5 {[%clk 0:00:20]} 85. Bd6 {[%clk 0:00:04]}  Be6 {[%clk 0:00:20]} 86. Be5 {[%clk 0:00:05]}  Ke4 {[%clk 0:00:20]} 87. Bc3 {[%clk 0:00:05]}  Kd3 {[%clk 0:00:21]} 88. Be5 {[%clk 0:00:06]}  Kc4 {[%clk 0:00:21]} 89. Bc3 {[%clk 0:00:06]} 1/2-1/2


[Site "https://www.chess.com"]

[Event "Titled Tuesday Blitz November 29 Late 2022"]
[White "Mathur, Rithwik"]
[Black "Domingo Nunez, Ruben"]
[WhiteFideId "30913667"]
[BlackFideId "22245570"]
[WhiteElo "2011"]
[BlackElo "2406"]
[Result "0-1"]
[Round "03"]
[TimeControl "180+1"]
[Date "2022.11.30"]
[WhiteClock "0:01:19"]
[BlackClock "0:01:54"]

1. Nf3 {[%clk 0:02:59]}  g6 {[%clk 0:02:59]} 2. d4 {[%clk 0:02:58]}  Bg7 {[%clk 0:03:00]} 3. g3 {[%clk 0:02:59]}  Nf6 {[%clk 0:03:00]} 4. Bg2 {[%clk 0:02:59]}  O-O {[%clk 0:03:01]} 5. O-O {[%clk 0:02:59]}  d6 {[%clk 0:03:02]} 6. b3 {[%clk 0:02:59]}  Nbd7 {[%clk 0:03:03]} 7. Bb2 {[%clk 0:02:59]}  c5 {[%clk 0:03:04]} 8. c4 {[%clk 0:02:59]}  Rb8 {[%clk 0:03:04]} 9. Nc3 {[%clk 0:02:59]}  a6 {[%clk 0:03:05]} 10. a4 {[%clk 0:02:56]}  b6 {[%clk 0:03:05]} 11. d5 {[%clk 0:02:52]}  Ne8 {[%clk 0:03:03]} 12. Qc2 {[%clk 0:02:49]}  Nc7 {[%clk 0:03:03]} 13. e4 {[%clk 0:02:48]}  b5 {[%clk 0:03:03]} 14. axb5 {[%clk 0:02:17]}  axb5 {[%clk 0:03:04]} 15. Nxb5 {[%clk 0:02:16]}  Bxb2 {[%clk 0:02:59]} 16. Qxb2 {[%clk 0:02:17]}  Nxb5 {[%clk 0:03:00]} 17. cxb5 {[%clk 0:02:17]}  Rxb5 {[%clk 0:03:01]} 18. Rfc1 {[%clk 0:02:13]}  Qb6 {[%clk 0:02:54]} 19. Nd2 {[%clk 0:02:11]}  Ne5 {[%clk 0:02:54]} 20. Bf1 {[%clk 0:02:07]}  Rb4 {[%clk 0:02:37]} 21. f4 {[%clk 0:02:04]}  c4+ {[%clk 0:01:56]} 22. Kg2 {[%clk 0:01:48]}  Nd3 {[%clk 0:01:56]} 23. Bxd3 {[%clk 0:01:25]}  cxd3 {[%clk 0:01:57]} 24. Nc4 {[%clk 0:01:23]}  Rxb3 {[%clk 0:01:54]} 25. Nxb6 {[%clk 0:01:19]}  Rxb2+ {[%clk 0:01:54]} 0-1


[Site "https://www.chess.com"]

[Event "Titled Tuesday Blitz November 29 Late 2022"]
[White "Mekhitarian, Krikor Sevag"]
[Black "Tan, Ralph"]
[WhiteFideId "2107660"]
[BlackFideId "30966590"]
[WhiteElo "2604"]
[BlackElo "2059"]
[Result "1-0"]
[Round "03"]
[TimeControl "180+1"]
[Date "2022.11.30"]
[WhiteClock "0:01:22"]
[BlackClock "0:00:14"]

1. e4 {[%clk 0:03:00]}  e6 {[%clk 0:03:00]} 2. d3 {[%clk 0:02:58]}  d5 {[%clk 0:03:00]} 3. Nd2 {[%clk 0:02:57]}  Nf6 {[%clk 0:02:59]} 4. g3 {[%clk 0:02:57]}  Be7 {[%clk 0:03:00]} 5. Bg2 {[%clk 0:02:57]}  O-O {[%clk 0:03:00]} 6. Ngf3 {[%clk 0:02:57]}  c5 {[%clk 0:03:00]} 7. O-O {[%clk 0:02:57]}  Nc6 {[%clk 0:03:00]} 8. e5 {[%clk 0:02:56]}  Nd7 {[%clk 0:03:00]} 9. Re1 {[%clk 0:02:56]}  b5 {[%clk 0:03:00]} 10. h4 {[%clk 0:02:56]}  a5 {[%clk 0:03:00]} 11. Nf1 {[%clk 0:02:55]}  b4 {[%clk 0:03:00]} 12. N1h2 {[%clk 0:02:55]}  a4 {[%clk 0:02:59]} 13. a3 {[%clk 0:02:55]}  Bb7 {[%clk 0:02:32]} 14. Ng4 {[%clk 0:02:54]}  c4 {[%clk 0:02:21]} 15. d4 {[%clk 0:02:46]}  c3 {[%clk 0:02:15]} 16. bxc3 {[%clk 0:02:47]}  bxa3 {[%clk 0:02:12]} 17. Ng5 {[%clk 0:02:41]}  Ba6 {[%clk 0:01:26]} 18. Bxa3 {[%clk 0:02:33]}  Nb6 {[%clk 0:01:16]} 19. Bc1 {[%clk 0:02:25]}  Bc4 {[%clk 0:01:01]} 20. Bf1 {[%clk 0:02:23]}  a3 {[%clk 0:00:53]} 21. Bxc4 {[%clk 0:02:23]}  dxc4 {[%clk 0:00:54]} 22. Ne4 {[%clk 0:02:17]}  Nd5 {[%clk 0:00:49]} 23. Qf3 {[%clk 0:02:17]}  f5 {[%clk 0:00:44]} 24. exf6 {[%clk 0:02:17]}  Bxf6 {[%clk 0:00:44]} 25. Qe2 {[%clk 0:02:11]}  e5 {[%clk 0:00:38]} 26. Nexf6+ {[%clk 0:02:07]}  Nxf6 {[%clk 0:00:31]} 27. Qxc4+ {[%clk 0:02:06]}  Kh8 {[%clk 0:00:30]} 28. Nxe5 {[%clk 0:01:57]}  Nxe5 {[%clk 0:00:29]} 29. dxe5 {[%clk 0:01:58]}  Nh5 {[%clk 0:00:27]} 30. Qg4 {[%clk 0:01:54]}  Qe8 {[%clk 0:00:25]} 31. e6 {[%clk 0:01:53]}  Nf6 {[%clk 0:00:25]} 32. Qe2 {[%clk 0:01:49]}  Qc6 {[%clk 0:00:20]} 33. Bf4 {[%clk 0:01:44]}  Nd5 {[%clk 0:00:20]} 34. Be5 {[%clk 0:01:42]}  Kg8 {[%clk 0:00:19]} 35. c4 {[%clk 0:01:41]}  Nf6 {[%clk 0:00:17]} 36. e7 {[%clk 0:01:40]}  Rfe8 {[%clk 0:00:14]} 37. Bd4 {[%clk 0:01:32]}  Rac8 {[%clk 0:00:11]} 38. Rxa3 {[%clk 0:01:28]}  Qxc4 {[%clk 0:00:11]} 39. Qxc4+ {[%clk 0:01:29]}  Rxc4 {[%clk 0:00:12]} 40. Bxf6 {[%clk 0:01:29]}  gxf6 {[%clk 0:00:13]} 41. Re6 {[%clk 0:01:23]}  Kf7 {[%clk 0:00:13]} 42. Raa6 {[%clk 0:01:24]}  Rxc2 {[%clk 0:00:12]} 43. Rxf6+ {[%clk 0:01:24]}  Kxe7 {[%clk 0:00:13]} 44. Rae6+ {[%clk 0:01:24]}  Kd7 {[%clk 0:00:13]} 45. Rxe8 {[%clk 0:01:22]}  Kxe8 {[%clk 0:00:13]} 46. Kg2 {[%clk 0:01:22]}  Ke7 {[%clk 0:00:13]} 47. Rh6 {[%clk 0:01:21]}  Kf7 {[%clk 0:00:12]} 48. Rxh7+ {[%clk 0:01:22]}  Kg6 {[%clk 0:00:13]} 49. Rd7 {[%clk 0:01:21]}  Rb2 {[%clk 0:00:14]} 50. Rd5 {[%clk 0:01:21]}  Kh6 {[%clk 0:00:14]} 51. g4 {[%clk 0:01:21]}  Kg6 {[%clk 0:00:13]} 52. Kg3 {[%clk 0:01:21]}  Rb3+ {[%clk 0:00:13]} 53. f3 {[%clk 0:01:21]}  Rb1 {[%clk 0:00:14]} 54. Rd6+ {[%clk 0:01:21]}  Kg7 {[%clk 0:00:14]} 55. g5 {[%clk 0:01:22]}  Rb4 {[%clk 0:00:14]} 56. h5 {[%clk 0:01:22]}  Ra4 {[%clk 0:00:14]} 57. Rd7+ {[%clk 0:01:22]}  Kg8 {[%clk 0:00:14]} 58. f4 {[%clk 0:01:22]}  Ra3+ {[%clk 0:00:14]} 59. Kg4 {[%clk 0:01:23]}  Ra1 {[%clk 0:00:15]} 60. g6 {[%clk 0:01:22]}  Rg1+ {[%clk 0:00:15]} 61. Kf5 {[%clk 0:01:22]}  Rh1 {[%clk 0:00:14]} 62. Kf6 {[%clk 0:01:22]} 1-0


[Site "https://www.chess.com"]

[Event "Titled Tuesday Blitz November 29 Late 2022"]
[White "Mladenovic, Stefan"]
[Black "Rangel, Daniel"]
[WhiteFideId "942227"]
[BlackFideId "2124475"]
[WhiteElo "2337"]
[BlackElo "2225"]
[Result "1-0"]
[Round "03"]
[TimeControl "180+1"]
[Date "2022.11.30"]
[WhiteClock "0:00:22"]
[BlackClock "0:00:06"]

1. d4 {[%clk 0:03:00]}  d5 {[%clk 0:02:59]} 2. Bf4 {[%clk 0:03:00]}  Nf6 {[%clk 0:02:58]} 3. e3 {[%clk 0:03:01]}  g6 {[%clk 0:02:57]} 4. Nf3 {[%clk 0:03:00]}  Bg7 {[%clk 0:02:57]} 5. c4 {[%clk 0:03:01]}  O-O {[%clk 0:02:54]} 6. Nc3 {[%clk 0:03:01]}  c5 {[%clk 0:02:37]} 7. dxc5 {[%clk 0:02:57]}  Qa5 {[%clk 0:02:35]} 8. Be2 {[%clk 0:02:46]}  Ne4 {[%clk 0:02:29]} 9. O-O {[%clk 0:02:45]}  Nxc3 {[%clk 0:02:28]} 10. bxc3 {[%clk 0:02:44]}  dxc4 {[%clk 0:02:24]} 11. Bxc4 {[%clk 0:02:39]}  Qxc5 {[%clk 0:02:22]} 12. Qb3 {[%clk 0:02:37]}  Nc6 {[%clk 0:02:10]} 13. Rac1 {[%clk 0:02:25]}  Na5 {[%clk 0:01:54]} 14. Qb4 {[%clk 0:02:24]}  Qxc4 {[%clk 0:01:51]} 15. Qxa5 {[%clk 0:02:23]}  b6 {[%clk 0:01:46]} 16. Qb4 {[%clk 0:02:23]}  Qxa2 {[%clk 0:01:38]} 17. Qxe7 {[%clk 0:02:21]}  Qe6 {[%clk 0:01:35]} 18. Qh4 {[%clk 0:02:16]}  Qg4 {[%clk 0:01:05]} 19. Qe7 {[%clk 0:02:15]}  Be6 {[%clk 0:00:59]} 20. Ne5 {[%clk 0:02:12]}  Qf5 {[%clk 0:00:59]} 21. Nc6 {[%clk 0:02:09]}  Bf6 {[%clk 0:00:32]} 22. Qb4 {[%clk 0:01:57]}  Rfe8 {[%clk 0:00:31]} 23. Nd4 {[%clk 0:01:53]}  Qe4 {[%clk 0:00:27]} 24. f3 {[%clk 0:01:45]}  Qb7 {[%clk 0:00:27]} 25. Nb5 {[%clk 0:01:44]}  Be7 {[%clk 0:00:23]} 26. Bd6 {[%clk 0:01:33]}  a5 {[%clk 0:00:23]} 27. Qf4 {[%clk 0:01:28]}  Qc6 {[%clk 0:00:20]} 28. Bxe7 {[%clk 0:01:27]}  Qxb5 {[%clk 0:00:20]} 29. Bf6 {[%clk 0:01:25]}  Qf5 {[%clk 0:00:20]} 30. Qh4 {[%clk 0:01:24]}  h5 {[%clk 0:00:18]} 31. Bd4 {[%clk 0:01:24]}  Bd7 {[%clk 0:00:13]} 32. e4 {[%clk 0:01:20]}  Qe6 {[%clk 0:00:13]} 33. Qg5 {[%clk 0:01:20]}  Kh7 {[%clk 0:00:14]} 34. Rb1 {[%clk 0:01:18]}  b5 {[%clk 0:00:13]} 35. f4 {[%clk 0:01:15]}  Bc6 {[%clk 0:00:09]} 36. f5 {[%clk 0:01:14]}  Qxe4 {[%clk 0:00:09]} 37. fxg6+ {[%clk 0:01:13]}  Qxg6 {[%clk 0:00:08]} 38. Qxg6+ {[%clk 0:01:02]}  fxg6 {[%clk 0:00:09]} 39. Rf7+ {[%clk 0:01:02]}  Kh6 {[%clk 0:00:09]} 40. Rf6 {[%clk 0:01:00]}  Re2 {[%clk 0:00:09]} 41. Rxc6 {[%clk 0:01:00]}  a4 {[%clk 0:00:08]} 42. Kf1 {[%clk 0:00:49]}  Rc2 {[%clk 0:00:08]} 43. Be3+ {[%clk 0:00:44]}  Kg7 {[%clk 0:00:07]} 44. Rxb5 {[%clk 0:00:32]}  a3 {[%clk 0:00:06]} 45. Rb7+ {[%clk 0:00:33]}  Kf8 {[%clk 0:00:05]} 46. Bc5+ {[%clk 0:00:32]}  Ke8 {[%clk 0:00:04]} 47. Re6+ {[%clk 0:00:25]}  Kd8 {[%clk 0:00:04]} 48. Bb6+ {[%clk 0:00:24]}  Kc8 {[%clk 0:00:05]} 49. Rc7+ {[%clk 0:00:24]}  Kd8 {[%clk 0:00:05]} 50. Ra7+ {[%clk 0:00:22]}  Kc8 {[%clk 0:00:06]} 51. Re8# {[%clk 0:00:22]} 1-0


[Site "https://www.chess.com"]

[Event "Titled Tuesday Blitz November 29 Late 2022"]
[White "Nakamura, Hikaru"]
[Black "Gasparyan, David"]
[WhiteFideId "2016192"]
[BlackFideId "13311980"]
[WhiteElo "2909"]
[BlackElo "2355"]
[Result "1-0"]
[Round "03"]
[TimeControl "180+1"]
[Date "2022.11.30"]
[WhiteClock "0:02:31"]
[BlackClock "0:00:47"]

1. Nf3 {[%clk 0:03:00]}  Nf6 {[%clk 0:02:59]} 2. g3 {[%clk 0:03:00]}  c5 {[%clk 0:02:58]} 3. b3 {[%clk 0:02:59]}  d6 {[%clk 0:02:55]} 4. d4 {[%clk 0:02:58]}  cxd4 {[%clk 0:02:54]} 5. Nxd4 {[%clk 0:02:59]}  g6 {[%clk 0:02:52]} 6. c4 {[%clk 0:02:59]}  Bg7 {[%clk 0:02:52]} 7. Bb2 {[%clk 0:03:00]}  O-O {[%clk 0:02:52]} 8. Bg2 {[%clk 0:03:01]}  d5 {[%clk 0:02:21]} 9. O-O {[%clk 0:02:53]}  Nc6 {[%clk 0:02:18]} 10. cxd5 {[%clk 0:02:49]}  Nxd5 {[%clk 0:02:15]} 11. Nxc6 {[%clk 0:02:50]}  bxc6 {[%clk 0:02:15]} 12. Bxg7 {[%clk 0:02:51]}  Kxg7 {[%clk 0:02:15]} 13. Qc1 {[%clk 0:02:49]}  Qb6 {[%clk 0:02:09]} 14. Nc3 {[%clk 0:02:48]}  Bb7 {[%clk 0:01:58]} 15. Na4 {[%clk 0:02:48]}  Qb5 {[%clk 0:01:49]} 16. Nc5 {[%clk 0:02:45]}  Rab8 {[%clk 0:01:47]} 17. e4 {[%clk 0:02:44]}  Nb6 {[%clk 0:01:46]} 18. a4 {[%clk 0:02:43]}  Qb4 {[%clk 0:01:34]} 19. a5 {[%clk 0:02:43]}  Na8 {[%clk 0:01:27]} 20. Ra4 {[%clk 0:02:37]}  Qb5 {[%clk 0:01:24]} 21. Qc3+ {[%clk 0:02:37]}  Kg8 {[%clk 0:01:22]} 22. Rc1 {[%clk 0:02:36]}  Rfd8 {[%clk 0:01:19]} 23. Bf1 {[%clk 0:02:36]}  Ba6 {[%clk 0:01:05]} 24. Nxa6 {[%clk 0:02:33]}  Qh5 {[%clk 0:01:02]} 25. Nxb8 {[%clk 0:02:32]}  Rxb8 {[%clk 0:01:00]} 26. Qxc6 {[%clk 0:02:32]}  Rd8 {[%clk 0:00:57]} 27. b4 {[%clk 0:02:29]}  Qg5 {[%clk 0:00:52]} 28. b5 {[%clk 0:02:30]}  h5 {[%clk 0:00:48]} 29. h4 {[%clk 0:02:29]}  Qd2 {[%clk 0:00:46]} 30. b6 {[%clk 0:02:29]}  axb6 {[%clk 0:00:46]} 31. axb6 {[%clk 0:02:30]}  Nxb6 {[%clk 0:00:47]} 32. Qxb6 {[%clk 0:02:31]} 1-0


[Site "https://www.chess.com"]